bitfinex/quotes_SOLUSD_20230103
["timestamp","ask_amount","ask_price","bid_price","bid_amount"]
[1672745368612,30.0,11.978,11.973,20.0]
[1672745374840,75.37,11.98,11.973,20.0]
[1672745375044,86.893,11.981,11.973,20.0]
[1672745375366,54.203,11.981,11.973,20.0]
[1672745375895,24.203,11.981,11.973,20.0]
[1672745376108,24.203,11.981,11.974,30.0]
[1672745376294,24.203,11.981,11.975,20.0]
[1672745378099,24.203,11.981,11.974,20.0]
[1672745382699,113.9009,11.984,11.975,30.0]
[1672745382915,113.9009,11.984,11.976,20.0]
[1672745383456,115.263,11.989,11.976,20.0]
[1672745383677,115.263,11.989,11.977,24.2568]
[1672745383854,115.263,11.989,11.978,20.0]
[1672745384076,115.263,11.989,11.978,44.2568]
[1672745385455,115.263,11.989,11.979,30.0]
[1672745385647,52.613,11.989,11.98,20.0]
[1672745387653,22.613,11.989,11.981,30.0]
[1672745387976,22.613,11.989,11.982,20.0]
[1672745388717,22.613,11.989,11.981,20.0]
[1672745392076,62.63,11.993,11.982,30.0]
[1672745392396,92.62,11.995,11.983,20.0]
[1672745392613,209.513,11.995,11.983,20.0]
[1672745392924,30.0,11.994,11.984,30.0]
[1672745393239,54.9855,11.994,11.985,20.0]
[1672745393640,54.9855,11.994,11.984,20.0]
[1672745393870,62.63,11.993,11.983,20.0]
[1672745394071,117.6155,11.994,11.983,20.0]
[1672745394898,54.9855,11.994,11.983,76.70476658]
[1672745395109,30.0,11.992,11.983,20.0]
[1672745395320,30.0,11.99,11.983,20.0]
[1672745395646,62.65,11.989,11.983,20.0]
[1672745395857,30.0,11.988,11.983,20.0]
[1672745403001,30.0,11.986,11.983,20.0]
[1672745403443,62.66,11.987,11.983,20.0]
[1672745403651,30.0,11.988,11.982,20.0]
[1672745404704,53.8524,11.99,11.982,20.0]
[1672745406902,12.65987586,11.989,11.979,113.5964]
[1672745407119,30.0,11.987,11.979,113.5964]
[1672745407313,62.67,11.986,11.971,78.4574]
[1672745407521,30.0,11.985,11.972,20.0]
[1672745407731,30.0,11.983,11.971,78.4574]
[1672745408054,62.69,11.982,11.971,78.4574]
[1672745408482,30.0,11.981,11.971,78.4574]
[1672745408689,181.5075,11.982,11.971,78.4574]
[1672745409095,30.0,11.981,11.972,20.0]
[1672745409527,181.5075,11.982,11.973,30.0]
[1672745410060,30.0,11.981,11.972,17.76]
[1672745411099,30.0,11.981,11.971,96.2174]
[1672745411311,30.0,11.981,11.972,20.0]
[1672745411731,62.7,11.98,11.961,30.0]
[1672745412058,30.0,11.979,11.962,20.0]
[1672745412248,62.71,11.978,11.963,17.77]
[1672745412593,180.5985,11.978,11.964,50.0]
[1672745412779,30.0,11.977,11.964,50.0]
[1672745412990,147.8885,11.977,11.965,24.0604]
[1672745413214,147.8885,11.977,11.966,20.0]
[1672745416160,147.8885,11.977,11.966,43.9814]
[1672745419521,62.72,11.976,11.966,43.9814]
[1672745419732,30.0,11.975,11.966,43.9814]
[1672745420577,147.8885,11.977,11.966,43.9814]
[1672745435832,147.8885,11.977,11.961,48.67167495]
[1672745436020,30.0,11.975,11.962,43.5758]
[1672745436235,30.0,11.973,11.962,23.5758]
[1672745436456,30.0,11.973,11.963,17.77]
[1672745437190,54.4472,11.973,11.962,41.3458]
[1672745438039,54.4472,11.973,11.963,30.0]
[1672745438249,24.4472,11.973,11.963,30.0]
[1672745438651,54.4472,11.973,11.963,30.0]
[1672745438870,54.4472,11.973,11.962,53.5758]
[1672745439073,117.1872,11.973,11.963,20.0]
[1672745439495,54.4472,11.973,11.963,20.0]
[1672745439715,62.73,11.974,11.964,41.74166944]
[1672745439912,62.71,11.978,11.965,17.76]
[1672745440121,62.71,11.978,11.967,30.0]
[1672745440331,30.0,11.977,11.966,65.9022]
[1672745440558,62.72,11.976,11.967,30.0]
[1672745440881,62.72,11.976,11.968,20.0]
[1672745441187,62.72,11.976,11.967,22.8342]
[1672745441409,62.72,11.976,11.968,20.0]
[1672745441599,30.0,11.975,11.968,20.0]
[1672745443698,30.0,11.975,11.967,22.8342]
[1672745444017,30.0,11.973,11.962,42.7654]
[1672745444229,30.0,11.973,11.963,20.0]
[1672745444957,54.7396,11.973,11.963,20.0]
[1672745445168,54.7396,11.973,11.962,48.8579]
[1672745445490,24.7396,11.973,11.963,41.74166944]
[1672745445709,24.7396,11.973,11.963,59.51166944]
[1672745446111,24.7396,11.973,11.963,47.77]
[1672745446664,24.7396,11.973,11.964,20.0]
[1672745446873,24.7396,11.973,11.965,30.0]
[1672745447081,62.7,11.98,11.966,20.0]
[1672745447416,24.9362,11.98,11.967,30.0]
[1672745447611,24.9362,11.98,11.968,20.0]
[1672745447823,87.6362,11.979,11.969,30.0]
[1672745448024,24.9362,11.979,11.97,20.0]
[1672745454544,24.9362,11.979,11.971,11.74166944]
[1672745454753,24.9362,11.979,11.972,20.0]
[1672745456860,24.9362,11.979,11.972,17.5]
[1672745457070,30.0,11.978,11.97,24.6581]
[1672745458023,87.6362,11.979,11.97,36.39976944]
[1672745458238,24.9362,11.979,11.971,20.0]
[1672745458672,24.9362,11.979,11.971,89.08477909]
[1672745458969,24.9362,11.979,11.972,30.0]
[1672745459408,24.9362,11.979,11.973,37.77]
[1672745459834,24.9362,11.979,11.973,98.57635075]
[1672745462254,24.9362,11.979,11.974,11.74166944]
[1672745462440,24.9362,11.979,11.975,20.0]
[1672745462650,30.0,11.98,11.975,20.0]
[1672745463072,30.0,11.98,11.974,20.0]
[1672745463504,137.048,11.981,11.974,20.0]
[1672745465606,30.0,11.98,11.973,20.0]
[1672745466226,30.0,11.978,11.973,20.0]
[1672745468653,30.0,11.978,11.972,24.7063]
[1672745468872,62.71,11.977,11.971,29.09]
[1672745469078,30.0,11.976,11.971,29.09]
[1672745469299,30.0,11.974,11.971,29.09]
[1672745472655,30.0,11.976,11.971,29.09]
[1672745475687,62.71,11.977,11.971,29.09]
[1672745475898,117.1598,11.978,11.971,29.09]
[1672745482654,117.1598,11.978,11.963,53.6615]
[1672745482828,30.0,11.976,11.964,20.0]
[1672745483037,30.0,11.974,11.964,20.0]
[1672745483887,53.6345,11.974,11.964,20.0]
[1672745484643,53.6345,11.974,11.964,44.3654]
[1672745484829,45.50377991,11.976,11.964,44.3654]
[1672745485040,30.0,11.978,11.966,30.0]
[1672745485369,30.0,11.978,11.967,44.3654]
[1672745485792,30.0,11.978,11.966,22.9766]
[1672745486007,30.0,11.976,11.966,22.9766]
[1672745486949,53.6589,11.976,11.966,22.9766]
[1672745487685,53.6589,11.976,11.967,6.825]
[1672745488409,53.6589,11.976,11.966,32.9016]
[1672745488623,53.6589,11.976,11.966,22.9766]
[1672745489668,30.0,11.974,11.966,22.9766]
[1672745502299,23.6589,11.975,11.966,22.9766]
[1672745502490,23.6589,11.975,11.967,11.74166944]
[1672745503551,23.6589,11.975,11.967,15.18566944]
[1672745505540,23.6589,11.975,11.967,3.444]
[1672745509344,23.6589,11.975,11.967,33.444]
[1672745509563,23.6589,11.975,11.967,45.18566944]
[1672745509868,23.6589,11.975,11.967,15.18566944]
[1672745512694,23.6589,11.975,11.967,3.444]
[1672745512900,23.6589,11.975,11.966,39.2566]
[1672745517020,30.0,11.974,11.966,39.2566]
[1672745517332,30.0,11.974,11.966,22.9766]
[1672745517524,23.6589,11.975,11.967,30.0]
[1672745517951,23.6589,11.975,11.966,64.71826944]
[1672745518260,23.6589,11.975,11.967,16.28]
[1672745522076,53.6589,11.975,11.967,16.28]
[1672745523443,30.0,11.974,11.966,50.99826944]
[1672745523632,30.0,11.974,11.966,34.71826944]
[1672745527542,23.6589,11.975,11.967,30.0]
[1672745527845,62.71,11.977,11.967,30.0]
[1672745528040,62.7,11.979,11.968,11.74166944]
[1672745528252,62.7,11.979,11.968,36.02916944]
[1672745528458,30.0,11.978,11.968,36.02916944]
[1672745528687,30.0,11.978,11.969,20.0]
[1672745528900,30.0,11.978,11.969,31.74166944]
[1672745534377,30.0,11.978,11.97,11.74166944]
[1672745534574,30.0,11.978,11.971,20.0]
[1672745535111,92.7,11.98,11.971,20.0]
[1672745535636,92.7,11.98,11.972,11.74166944]
[1672745535829,92.7,11.98,11.973,20.0]
[1672745537629,92.7,11.98,11.972,20.0]
[1672745539411,62.7,11.98,11.972,20.0]
[1672745539731,86.149,11.981,11.972,31.74166944]
[1672745539924,23.459,11.981,11.972,31.74166944]
[1672745545723,23.459,11.981,11.972,20.0]
[1672745545907,30.0,11.98,11.972,20.0]
[1672745552429,23.459,11.981,11.972,20.0]
[1672745553389,30.0,11.98,11.972,20.0]
[1672745558415,23.459,11.981,11.972,20.0]
[1672745558624,23.459,11.981,11.973,41.74166944]
[1672745558835,23.459,11.981,11.974,20.0]
[1672745559062,23.459,11.981,11.974,31.74166944]
[1672745559804,23.459,11.981,11.974,20.0]
[1672745560112,23.459,11.981,11.974,11.74166944]
[1672745560430,23.459,11.981,11.975,20.0]
[1672745562010,23.459,11.981,11.976,11.74166944]
[1672745562198,53.459,11.981,11.976,11.74166944]
[1672745562741,30.0,11.98,11.974,23.946]
[1672745562931,30.0,11.98,11.974,20.0]
[1672745564108,23.459,11.981,11.974,20.0]
[1672745565061,53.459,11.981,11.974,20.0]
[1672745565370,23.459,11.981,11.974,20.0]
[1672745565774,53.459,11.981,11.974,20.0]
[1672745570605,23.459,11.981,11.975,30.0]
[1672745570827,30.0,11.993,11.975,30.0]
[1672745571035,112.6408,11.992,11.98,12.6]
[1672745571362,112.6408,11.992,11.981,144.69069421]
[1672745571567,112.6408,11.992,11.982,50.0]
[1672745571771,30.0,11.991,11.982,100.71673116]
[1672745572096,112.6408,11.992,11.982,173.88775141]
[1672745572415,30.0,11.991,11.983,3.982]
[1672745573762,112.6408,11.992,11.983,77.15302025]
[1672745573983,112.6408,11.992,11.984,20.0]
[1672745574192,30.0,11.991,11.984,20.0]
[1672745574923,112.6408,11.992,11.984,20.0]
[1672745576182,112.6408,11.992,11.984,81.42935081]
[1672745576394,112.6408,11.992,11.985,11.74166944]
[1672745576602,112.6408,11.992,11.984,81.42935081]
[1672745579542,30.0,11.991,11.984,81.42935081]
[1672745580503,30.0,11.991,11.984,20.0]
[1672745583657,30.0,11.991,11.983,20.0]
[1672745584386,112.6408,11.992,11.983,20.0]
[1672745584605,112.6408,11.992,11.983,31.56]
[1672745584807,30.0,11.991,11.983,31.56]
[1672745585331,30.0,11.991,11.983,20.0]
[1672745585655,112.6408,11.992,11.983,20.0]
[1672745585864,112.6408,11.992,11.983,31.74166944]
[1672745586057,112.6408,11.992,11.983,116.13442025]
[1672745586268,112.6408,11.992,11.984,30.0]
[1672745586490,112.6408,11.992,11.985,20.0]
[1672745587110,112.6408,11.992,11.985,93.17102025]
[1672745588598,30.0,11.991,11.985,93.17102025]
[1672745588907,112.6408,11.992,11.986,11.74166944]
[1672745589114,112.6408,11.992,11.987,30.0]
[1672745589313,112.6408,11.992,11.987,117.39009421]
[1672745589517,210.743399,12.0,11.989,30.0]
[1672745589731,210.743399,12.0,11.99,32.7]
[1672745589947,30.0,11.999,11.99,130.09009421]
[1672745590163,30.0,11.999,11.991,77.44120379]
[1672745590377,210.743399,12.0,11.991,77.44120379]
[1672745590378,210.743399,12.0,11.992,30.0]
[1672745590575,210.743399,12.0,11.994,5.46253042]
[1672745590786,194.733399,12.0,11.993,20.0]
[1672745590996,150.0,12.01,12.001,58.23022327]
[1672745591210,112.04897657,12.01,12.003,140.71226417]
[1672745591441,50.30730713,12.01,12.004,20.0]
[1672745591741,819.82071439,12.031,12.013,41.69224725]
[1672745591742,62.44,12.029,12.013,41.69224725]
[1672745591932,819.82071439,12.031,12.005,148.71006679]
[1672745591933,30.0,12.028,12.012,41.69224725]
[1672745592149,62.45,12.027,12.009,54.53709295]
[1672745592370,62.45,12.027,12.007,41.69224725]
[1672745592371,180.382,12.027,12.013,57.26776219]
[1672745592589,62.46,12.026,12.015,41.69224725]
[1672745592783,30.0,12.025,12.014,106.33227409]
[1672745593114,62.47,12.024,12.014,41.69224725]
[1672745593309,12.68,12.02,12.008,41.69224725]
[1672745593511,62.5,12.019,12.003,41.69224725]
[1672745593727,12.64,12.01,12.003,41.69224725]
[1672745593955,62.55,12.009,11.993,41.69224725]
[1672745594372,30.0,12.008,11.993,41.69224725]
[1672745594593,62.56,12.007,11.993,41.69224725]
[1672745594897,30.0,12.006,11.993,41.69224725]
[1672745595112,62.57,12.005,11.993,41.69224725]
[1672745595315,30.0,12.004,12.002,4.975e-05]
[1672745595523,30.0,12.004,11.98,12.73]
[1672745595524,78.68334975,12.002,11.983,30.0]
[1672745595845,42.51,12.0,11.983,77.3224]
[1672745596057,30.0,11.998,11.983,77.14701359]
[1672745596257,178.6896,11.997,11.983,77.14701359]
[1672745596886,144.5768,11.996,11.983,47.3224]
[1672745597090,12.51,11.99,11.972,145.84835241]
[1672745597292,62.65,11.989,11.972,145.84835241]
[1672745597515,62.65,11.989,11.973,11.41928212]
[1672745597836,30.0,11.988,11.97,83.2119]
[1672745598050,62.66,11.987,11.97,83.2119]
[1672745598256,177.2368,11.987,11.97,83.2119]
[1672745598660,177.2368,11.987,11.971,11.10029111]
[1672745598885,62.64,11.992,11.972,30.0]
[1672745599287,62.64,11.992,11.973,11.10029111]
[1672745599515,62.64,11.992,11.97,147.63402182]
[1672745599516,30.0,11.991,11.97,83.2419]
[1672745599721,30.0,11.989,11.973,11.10029111]
[1672745599931,62.66,11.988,11.973,11.10029111]
[1672745600344,144.5768,11.991,11.973,11.10029111]
[1672745600345,62.65,11.99,11.973,11.10029111]
[1672745600556,114.5768,11.991,11.98,12.65]
[1672745600778,92.64,11.992,11.98,12.65]
[1672745601398,92.64,11.992,11.981,11.10029111]
[1672745601603,92.64,11.992,11.982,20.0]
[1672745601814,30.0,11.992,11.982,20.0]
[1672745602038,30.0,11.99,11.982,20.0]
[1672745602460,30.0,11.992,11.981,20.0]
[1672745602661,62.63,11.993,11.983,11.10029111]
[1672745603088,62.63,11.993,11.984,20.0]
[1672745603492,62.63,11.993,11.984,31.10029111]
[1672745603707,77.7352,11.996,11.984,31.10029111]
[1672745604027,62.62,11.995,11.984,31.10029111]
[1672745604554,62.6,11.998,11.984,31.10029111]
[1672745604761,62.6,11.999,11.985,30.0]
[1672745604965,62.6,11.999,11.986,20.0]
[1672745605176,92.59,12.0,11.986,82.84241293]
[1672745605398,92.59,12.0,11.987,41.10029111]
[1672745605609,92.59,12.0,11.988,20.0]
[1672745606019,105.17,12.0,11.986,51.74212182]
[1672745606229,155.67,12.0,11.986,51.74212182]
[1672745606444,155.67,12.0,11.985,20.0]
[1672745607197,155.67,12.0,11.984,72.0332]
[1672745608032,275.0369,12.0,11.984,72.0332]
[1672745608234,211.0422646,12.0,11.984,72.0332]
[1672745608455,257.83669179,12.0,11.984,72.0332]
[1672745609082,257.83669179,12.0,11.985,20.0]
[1672745609294,160.6022646,12.0,11.985,20.0]
[1672745609497,160.6022646,12.0,11.97,42.72]
[1672745609498,211.2022646,12.0,11.97,42.72]
[1672745609711,12.63,11.99,11.97,42.72]
[1672745609915,62.65,11.989,11.975,11.10029111]
[1672745610132,30.0,11.988,11.975,11.10029111]
[1672745610320,62.66,11.987,11.97,42.72]
[1672745610535,62.66,11.987,11.972,11.10029111]
[1672745610962,117.0371,11.989,11.974,30.0]
[1672745611178,117.0371,11.989,11.975,20.0]
[1672745611381,117.0371,11.989,11.976,30.0]
[1672745611619,62.64,11.992,11.977,20.0]
[1672745611836,62.64,11.992,11.977,31.10029111]
[1672745612039,62.64,11.992,11.978,11.10029111]
[1672745612250,62.64,11.992,11.979,20.0]
[1672745612785,62.63,11.993,11.98,11.10029111]
[1672745613201,62.63,11.993,11.981,20.0]
[1672745613513,30.0,11.992,11.981,20.0]
[1672745613729,30.0,11.992,11.982,11.10029111]
[1672745613939,62.64,11.991,11.983,20.0]
[1672745614150,30.0,11.992,11.983,20.0]
[1672745614770,30.0,11.992,11.983,31.10029111]
[1672745614982,62.63,11.993,11.983,31.10029111]
[1672745615187,62.62,11.996,11.983,31.10029111]
[1672745615403,62.62,11.996,11.984,30.0]
[1672745615618,30.0,11.999,11.985,20.0]
[1672745615834,30.0,11.997,11.985,20.0]
[1672745616044,62.62,11.996,11.985,20.0]
[1672745616250,62.62,11.996,11.985,31.10029111]
[1672745616670,62.6,11.998,11.986,30.0]
[1672745616996,62.6,11.998,11.986,41.10029111]
[1672745619109,30.0,11.997,11.986,11.10029111]
[1672745619309,62.62,11.996,11.985,20.0]
[1672745619929,30.0,11.995,11.985,20.0]
[1672745620138,62.63,11.994,11.985,20.0]
[1672745620351,62.62,11.996,11.985,31.10029111]
[1672745620549,62.62,11.996,11.985,20.0]
[1672745620970,30.0,11.997,11.985,20.0]
[1672745621288,62.62,11.996,11.985,20.0]
[1672745622778,62.62,11.996,11.985,31.10029111]
[1672745623722,62.6,11.998,11.985,31.10029111]
[1672745623933,30.0,11.997,11.985,31.10029111]
[1672745624153,62.62,11.996,11.985,31.10029111]
[1672745624474,115.885,12.003,11.986,30.0]
[1672745624663,228.0271,12.003,11.987,20.0]
[1672745624873,228.0271,12.003,11.987,31.10029111]
[1672745625104,228.0271,12.003,11.988,11.10029111]
[1672745625300,228.0271,12.003,11.989,20.0]
[1672745626239,228.0271,12.003,11.987,31.10029111]
[1672745626666,228.0271,12.003,11.982,53.7841]
[1672745626883,228.0271,12.003,11.985,20.0]
[1672745627084,228.0271,12.003,11.985,31.10029111]
[1672745627306,228.0271,12.003,11.986,11.10029111]
[1672745628559,228.0271,12.003,11.987,20.0]
[1672745628769,228.0271,12.003,11.988,30.0]
[1672745628979,228.0271,12.003,11.989,20.0]
[1672745629190,228.0271,12.003,11.989,31.10029111]
[1672745629503,228.0271,12.003,11.99,11.10029111]
[1672745629731,228.0271,12.003,11.991,20.0]
[1672745629921,92.58,12.003,11.991,20.0]
[1672745630133,92.58,12.003,11.992,11.10029111]
[1672745630670,92.58,12.003,11.993,20.0]
[1672745631623,92.58,12.003,11.993,31.10029111]
[1672745632668,62.58,12.003,11.993,31.10029111]
[1672745632878,62.57,12.004,11.993,31.10029111]
[1672745634140,30.0,12.003,11.993,31.10029111]
[1672745634339,30.0,12.001,11.993,20.0]
[1672745634553,62.59,12.0,11.993,20.0]
[1672745634757,30.0,11.999,11.991,20.0]
[1672745635090,62.6,11.998,11.991,20.0]
[1672745635814,30.0,11.997,11.981,30.0]
[1672745636024,62.62,11.996,11.982,20.0]
[1672745636237,30.0,11.995,11.982,20.0]
[1672745636433,30.0,11.993,11.982,20.0]
[1672745636647,62.64,11.992,11.982,20.0]
[1672745637073,62.64,11.992,11.981,79.5922]
[1672745637291,179.6753,11.994,11.981,79.5922]
[1672745637487,100.0,11.99,11.983,11.10029111]
[1672745640235,100.0,11.99,11.984,20.0]
[1672745640650,100.0,11.99,11.985,11.10029111]
[1672745641374,100.0,11.99,11.984,20.0]
[1672745641584,100.0,11.99,11.982,20.0]
[1672745650119,100.0,11.99,11.983,30.0]
[1672745650431,100.0,11.99,11.984,20.0]
[1672745650641,100.0,11.99,11.984,31.10029111]
[1672745650857,100.0,11.99,11.985,41.10029111]
[1672745651162,100.0,11.99,11.985,30.0]
[1672745651356,100.0,11.99,11.986,11.10029111]
[1672745653142,100.0,11.99,11.987,20.0]
[1672745653559,100.0,11.99,11.988,11.10029111]
[1672745654000,100.0,11.99,11.989,20.0]
[1672745654407,100.0,11.99,11.989,31.10029111]
[1672745657872,110.3744,12.0,11.99,30.0]
[1672745658102,110.3744,12.0,11.991,20.0]
[1672745658416,62.58,12.002,11.992,41.10029111]
[1672745658608,159.1465,12.003,11.993,20.0]
[1672745658819,62.56,12.007,11.993,31.10029111]
[1672745659030,63.16,12.02,11.994,87.55389111]
[1672745659031,62.55,12.008,11.994,87.55389111]
[1672745659243,62.55,12.008,11.996,30.0]
[1672745659671,62.53,12.012,12.0,12.65]
[1672745659878,47.5226,12.012,12.001,20.0]
[1672745660084,62.54,12.011,12.001,31.10029111]
[1672745660304,62.54,12.011,12.002,11.10029111]
[1672745660623,62.54,12.011,12.003,20.0]
[1672745661027,62.54,12.011,12.003,31.10029111]
[1672745661863,108.861,12.012,12.004,30.0]
[1672745662078,108.861,12.012,12.005,20.0]
[1672745662280,108.861,12.012,12.005,31.10029111]
[1672745662496,108.861,12.012,12.006,11.10029111]
[1672745662703,62.52,12.014,12.005,20.0]
[1672745662912,30.0,12.013,12.002,11.10029111]
[1672745663145,62.53,12.012,12.003,20.0]
[1672745664195,30.0,12.011,12.003,20.0]
[1672745664387,30.0,12.009,12.003,20.0]
[1672745664597,62.55,12.008,11.99,12.56]
[1672745664814,30.0,12.007,11.991,20.0]
[1672745665042,30.0,12.005,11.991,20.0]
[1672745665246,177.2066,12.004,11.991,11.10029111]
[1672745665567,30.0,12.003,11.991,11.10029111]
[1672745665759,62.58,12.002,11.991,11.10029111]
[1672745666933,30.0,12.001,11.99,47.7171]
[1672745667441,30.0,12.001,11.991,30.0]
[1672745667654,30.0,12.001,11.99,58.81739111]
[1672745667857,30.0,12.001,11.992,11.10029111]
[1672745668067,30.0,12.001,11.993,20.0]
[1672745668277,30.0,12.001,11.992,20.0]
[1672745668504,62.58,12.002,11.991,20.0]
[1672745668902,30.0,12.001,11.992,11.10029111]
[1672745669123,30.0,12.001,11.993,20.0]
[1672745671028,30.0,12.001,11.991,20.0]
[1672745671221,140.3308,12.001,11.991,20.0]
[1672745671429,140.3308,12.001,11.992,11.10029111]
[1672745671651,140.3308,12.001,11.993,20.0]
[1672745672517,140.3308,12.001,11.992,20.0]
[1672745672709,140.3308,12.001,11.991,20.0]
[1672745673251,30.0,11.999,11.991,20.0]
[1672745674493,30.0,11.999,11.991,31.10029111]
[1672745675989,140.3308,12.001,11.991,31.10029111]
[1672745678504,62.59,12.0,11.991,31.10029111]
[1672745679032,30.0,11.999,11.991,31.10029111]
[1672745679256,62.59,12.0,11.991,31.10029111]
[1672745679431,110.3308,12.001,11.992,30.0]
[1672745679643,110.3308,12.001,11.993,20.0]
[1672745679858,110.3308,12.001,11.993,31.10029111]
[1672745680061,110.3308,12.001,11.994,11.10029111]
[1672745680271,110.3308,12.001,11.995,20.0]
[1672745680693,62.59,12.0,11.995,20.0]
[1672745680916,30.0,11.999,11.995,20.0]
[1672745681433,62.59,12.0,11.995,20.0]
[1672745681748,62.59,12.0,11.992,20.0]
[1672745682157,62.59,12.0,11.992,31.10029111]
[1672745682899,30.0,11.999,11.992,20.0]
[1672745683987,92.59,12.0,11.992,20.0]
[1672745684389,62.59,12.0,11.992,31.10029111]
[1672745684599,30.0,12.0,11.992,31.10029111]
[1672745684808,110.3308,12.001,11.992,20.0]
[1672745685023,30.0,11.999,11.992,31.10029111]
[1672745685234,62.59,12.0,11.992,20.0]
[1672745685563,62.59,12.0,11.992,31.10029111]
[1672745685759,110.3308,12.001,11.992,31.10029111]
[1672745685969,30.0,12.0,11.992,31.10029111]
[1672745686508,110.3308,12.001,11.992,31.10029111]
[1672745687540,30.0,12.0,11.992,31.10029111]
[1672745687751,92.59,12.0,11.992,31.10029111]
[1672745690068,30.0,12.0,11.992,31.10029111]
[1672745691756,92.59,12.0,11.992,31.10029111]
[1672745691970,30.0,12.0,11.992,31.10029111]
[1672745693546,92.59,12.0,11.992,20.0]
[1672745694294,92.59,12.0,11.977,298.30580262]
[1672745694295,105.24,12.0,11.983,1676.45397962]
[1672745694506,113.3621,11.999,11.982,30.0]
[1672745694826,92.6,11.998,11.984,11.10029111]
[1672745695215,30.0,11.996,11.984,11.10029111]
[1672745695432,62.62,11.995,11.984,11.10029111]
[1672745695651,30.0,11.994,11.984,11.10029111]
[1672745695872,30.0,11.994,11.985,20.0]
[1672745697445,62.62,11.995,11.985,20.0]
[1672745697870,175.749,11.996,11.985,20.0]
[1672745698184,30.0,11.995,11.984,11.10029111]
[1672745698397,62.63,11.994,11.984,11.10029111]
[1672745699316,62.63,11.994,11.985,20.0]
[1672745699532,30.0,11.993,11.985,20.0]
[1672745700081,30.0,11.993,11.984,20.0]
[1672745700902,172.0054,11.994,11.984,20.0]
[1672745701113,172.0054,11.994,11.983,20.0]
[1672745701327,30.0,11.993,11.983,20.0]
[1672745701543,62.64,11.992,11.983,20.0]
[1672745701865,30.0,11.991,11.982,20.0]
[1672745702473,62.65,11.99,11.982,20.0]
[1672745702683,92.64,11.991,11.982,20.0]
[1672745709323,12.57,11.99,11.982,20.0]
[1672745713755,92.64,11.991,11.982,20.0]
[1672745718703,177.0519,11.992,11.982,31.10029111]
[1672745718918,114.4119,11.992,11.982,31.10029111]
[1672745719128,30.0,11.991,11.982,31.10029111]
[1672745721548,114.4119,11.992,11.982,31.10029111]
[1672745722307,30.0,11.991,11.982,31.10029111]
[1672745725849,62.65,11.99,11.982,31.10029111]
[1672745726064,92.64,11.991,11.982,31.10029111]
[1672745726274,30.0,11.991,11.982,31.10029111]
[1672745726612,30.0,11.991,11.982,20.0]
[1672745729322,30.0,11.989,11.982,20.0]
[1672745732694,30.0,11.991,11.982,20.0]
[1672745734260,30.0,11.991,11.978,22.801]